bitfinex-derivatives/quotes_BNBF0:USTF0_20250603
["timestamp","ask_amount","ask_price","bid_price","bid_amount"]
[1748958653446,3.75116012,665.91,664.2,0.57291334]
[1748958653645,3.75116012,665.92,664.2,0.57291334]
[1748958653848,3.75116012,665.92,664.21,0.57291334]
[1748958654147,3.75116012,665.92,664.18,0.57291334]
[1748958654344,3.75116012,665.93,664.18,0.57291334]
[1748958654841,3.75116012,665.94,664.18,0.57291334]
[1748958655240,3.75116012,665.92,664.14,0.57291334]
[1748958655440,3.75116012,665.92,664.15,1.04175865]
[1748958655642,3.75116012,665.92,664.12,0.57291334]
[1748958655840,3.75116012,665.92,664.13,2.1441824]
[1748958656046,3.75116012,665.91,664.14,2.1441817]
[1748958656244,3.75116012,665.91,664.15,2.144098]
[1748958656443,3.75116012,665.89,664.04,0.57291334]
[1748958656644,3.75116012,665.89,664.16,1.10224153]
[1748958656846,3.75116012,665.89,664.17,1.10224175]
[1748958657046,3.75116012,665.89,663.99,0.57291334]
[1748958657246,3.75116012,665.89,664.0,1.04264951]
[1748958657444,3.75116012,665.86,664.01,1.79540281]
[1748958657645,3.75116012,665.86,664.02,1.04264951]
[1748958657850,3.75116012,665.86,663.9,1.11428454]
[1748958657851,3.75116012,665.86,664.03,2.14492413]
[1748958658146,3.75116012,665.87,664.04,1.04271197]
[1748958658450,3.75116012,665.84,664.05,2.14491461]
[1748958658650,3.75116012,665.84,664.06,1.79544907]
[1748958658848,3.75116012,665.85,664.07,1.04271197]
[1748958659045,3.75116012,665.85,664.08,1.79545224]
[1748958659249,3.75116012,665.85,664.09,2.89763766]
[1748958659445,3.75116012,665.74,664.1,2.14489263]
[1748958659647,3.75116012,665.74,664.11,1.79544917]
[1748958659852,3.75116012,665.77,664.12,1.04271197]
[1748958660152,3.75116012,665.77,664.13,3.24789324]
[1748958660356,3.75116012,665.76,664.14,1.04361254]
[1748958660552,3.75116012,665.76,664.15,1.04361254]
[1748958660746,3.75116012,665.77,664.16,1.04361254]
[1748958660947,3.75116012,665.77,664.17,1.04358009]
[1748958661255,3.75116012,665.77,664.18,2.14568888]
[1748958661452,3.75116012,665.77,664.19,2.14568628]
[1748958661752,3.75116012,665.76,664.13,1.10214312]
[1748958661951,3.75116012,665.76,664.14,1.04400999]
[1748958662146,3.75116012,665.76,664.13,1.10214312]
[1748958662147,3.75116012,665.73,664.15,1.04400999]
[1748958662352,3.75116012,665.73,664.13,1.10214312]
[1748958662353,3.75116012,665.73,664.16,1.04400999]
[1748958662554,3.75116012,665.73,664.17,1.04400999]
[1748958662749,3.75116012,665.69,664.18,1.04400999]
[1748958662954,3.75116012,665.69,664.19,2.14611936]
[1748958663152,3.75116012,665.69,664.13,1.10214312]
[1748958663353,3.75116012,665.69,664.14,1.04451148]
[1748958663550,3.75116012,665.66,664.15,1.04451148]
[1748958663750,3.75116012,665.66,664.16,1.04451148]
[1748958663949,3.75116012,665.67,664.17,1.04451148]
[1748958664150,3.75116012,665.67,664.18,1.04426666]
[1748958664455,3.75116012,665.67,664.19,1.04426666]
[1748958664648,3.75116012,665.69,664.2,2.14636616]
[1748958664849,3.75116012,665.69,664.21,2.14653742]
[1748958665049,3.75116012,665.92,664.22,2.14639976]
[1748958665249,3.75116012,665.92,664.23,1.04443888]
[1748958665456,3.75116012,665.95,664.24,1.04443888]
[1748958665654,3.75116012,665.95,664.13,1.10214312]
[1748958665655,3.75116012,665.95,664.25,2.14617133]
[1748958665847,3.75116012,665.98,664.26,1.04443888]
[1748958666052,3.75116012,665.98,664.27,1.04443888]
[1748958666254,0.30031833,665.96,664.28,1.04443888]
[1748958666450,0.30031833,665.96,664.29,1.04443888]
[1748958666657,0.30031833,665.96,664.3,2.14589904]
[1748958666855,0.30031833,665.96,664.31,1.04443888]
[1748958667154,0.30031833,665.96,664.32,1.34530611]
[1748958667349,0.30031833,665.96,664.32,0.30105973]
[1748958667554,0.30031833,665.96,664.33,1.04426442]
[1748958667755,0.30031833,665.96,664.32,0.30105973]
[1748958667953,0.30031833,665.96,664.33,1.04413574]
[1748958668152,0.30031833,665.96,664.34,1.04413574]
[1748958668357,0.30031833,665.96,664.32,0.30105973]
[1748958668358,3.75116012,665.81,664.35,1.04413574]
[1748958668553,0.3003905,665.8,664.36,1.04413574]
[1748958668755,0.3003905,665.8,664.32,0.30105973]
[1748958668960,0.3003905,665.8,664.33,1.04351401]
[1748958669260,0.3003905,665.8,664.34,1.04351401]
[1748958669459,0.3003905,665.8,664.35,1.04351401]
[1748958669660,0.3003905,665.8,664.36,1.04351401]
[1748958669859,0.3003905,665.8,664.37,0.30103707]
[1748958670062,0.3003905,665.8,664.38,1.10056567]
[1748958670262,0.3003905,665.8,664.39,0.30102801]
[1748958671058,0.3003905,665.8,664.4,1.10039484]
[1748958671260,0.3003905,665.8,664.41,0.30101894]
[1748958673365,0.3003905,665.8,664.42,1.09997742]
[1748958673560,0.3003905,665.8,664.43,2.8940201]
[1748958673766,0.3003905,665.8,664.42,0.30101441]
[1748958673970,0.3003905,665.8,664.43,1.04175924]
[1748958674162,0.3003905,665.8,664.42,0.30101441]
[1748958674365,0.3003905,665.8,664.43,1.04168353]
[1748958674566,0.3003905,665.8,664.44,1.04168353]
[1748958674868,0.3003905,665.8,664.43,0.75242816]
[1748958675662,0.3003905,665.8,664.43,1.05343804]
[1748958675862,0.3003905,665.8,664.44,0.30100535]
[1748958676065,0.3003905,665.8,664.45,1.09996587]
[1748958676268,0.3003905,665.8,664.46,0.30099629]
[1748958677162,0.3003905,665.8,664.47,1.10013359]
[1748958679867,0.3003905,665.8,664.48,0.30098723]
[1748958688072,0.3003905,665.8,664.49,0.57291334]
[1748958688273,0.3003905,665.8,664.48,0.30098723]
[1748958688274,0.3003905,665.8,664.51,0.57291334]
[1748958688772,0.3003905,665.8,664.5,0.57291334]
[1748958688972,0.3003905,665.8,664.7,0.57291334]
[1748958689172,0.3003905,665.8,664.71,0.57291334]
[1748958689673,0.3003905,665.8,664.7,0.57291334]
[1748958689873,0.3003905,665.8,664.71,0.57291334]
[1748958690071,0.3003905,665.8,664.72,0.57291334]
[1748958691274,0.3003905,665.8,664.73,0.57291334]
[1748958692270,0.3003905,665.8,664.74,0.57291334]
[1748958692474,0.3003905,665.8,664.73,0.57291334]
[1748958692776,0.3003905,665.8,664.48,0.30098723]
[1748958692777,0.3003905,665.8,664.97,0.47662494]
[1748958693275,0.3003905,665.8,664.98,0.47662494]
[1748958693476,0.3003905,665.8,664.97,0.47662494]
[1748958693877,0.3003905,665.8,664.89,0.47662494]
[1748958694075,0.3003905,665.8,664.91,0.47662494]
[1748958694272,0.3003905,665.8,664.48,0.30098723]
[1748958694273,0.3003905,665.8,664.88,0.47662494]
[1748958694875,0.3003905,665.8,664.81,0.47662494]
[1748958695181,0.3003905,665.8,664.5,0.47662494]
[1748958695475,0.3003905,665.8,664.48,0.30098723]
[1748958695980,0.3003905,665.8,664.49,1.10061624]
[1748958696187,0.3003905,665.8,664.48,0.30098723]
[1748958696781,0.3003905,665.8,664.49,2.14149294]
[1748958696985,0.3003905,665.8,664.5,0.30097817]
[1748958697388,0.3003905,665.8,664.51,1.10055326]
[1748958697583,0.3003905,665.8,664.51,0.30097364]
[1748958697987,0.3003905,665.8,664.52,2.14149254]
[1748958698186,0.3003905,665.8,664.51,0.30097364]
[1748958698187,0.3003905,665.8,664.53,1.0410716]
[1748958698382,0.3003905,665.8,664.51,0.30097364]
[1748958698587,0.3003905,665.8,664.54,0.30096006]
[1748958700184,0.3003905,665.8,664.55,1.09976217]
[1748958700488,0.3003905,665.8,664.56,1.40070593]
[1748958700689,0.3003905,665.8,664.57,0.30094647]
[1748958720504,0.3003905,665.8,664.58,1.04625021]
[1748958720704,0.3003905,665.8,664.59,1.34718763]
[1748958720903,0.3003905,665.8,664.6,0.30093289]
[1748958722308,0.3003905,665.8,664.61,1.04680531]
[1748958722500,0.3003905,665.8,664.62,1.04680531]
[1748958722705,0.3003905,665.8,664.63,1.04680531]
[1748958722906,0.3003905,665.8,664.64,1.04680531]
[1748958723101,0.3003905,665.8,664.65,1.04680531]
[1748958723304,0.3003905,665.8,664.6,0.30093289]
[1748958723504,0.3003905,665.8,664.61,2.14609318]
[1748958723707,0.3003905,665.8,664.62,1.04690575]
[1748958723901,0.3003905,665.8,664.63,1.04690575]
[1748958724107,0.3003905,665.8,664.64,1.09920387]
[1748958724305,0.3003905,665.8,664.65,2.15012453]
[1748958724503,0.3003905,665.8,664.66,1.04895324]
[1748958724705,0.3003905,665.8,664.67,1.10178463]
[1748958724906,0.3003905,665.8,664.6,0.30093289]
[1748958725099,0.3003905,665.8,664.61,1.04952067]
[1748958725303,0.3003905,665.8,664.62,2.15143162]
[1748958725502,0.3003905,665.8,664.63,1.04952067]
[1748958725706,0.3003905,665.8,664.64,1.04952067]
[1748958725906,0.3003905,665.8,664.6,0.30093289]
[1748958725907,0.3003905,665.8,664.65,1.04952067]
[1748958726107,0.3003905,665.8,664.66,1.10193365]
[1748958726308,0.3003905,665.8,664.6,0.30093289]
[1748958726505,0.3003905,665.8,664.61,1.04950521]
[1748958726701,0.3003905,665.8,664.62,1.04950521]
[1748958726903,0.3003905,665.8,664.63,2.15117915]
[1748958727110,0.3003905,665.8,664.64,2.15119701]
[1748958727411,0.3003905,665.8,664.65,1.04950521]
[1748958727611,0.3003905,665.8,664.66,1.04950521]
[1748958727908,0.3003905,665.8,664.67,1.04950521]
[1748958728107,0.3003905,665.8,664.68,1.04911679]
[1748958728305,0.3003905,665.8,664.69,2.15076602]
[1748958728610,0.3003905,665.8,664.7,2.1507709]
[1748958728812,0.3003905,665.8,664.71,2.15050558]
[1748958729109,0.3003905,665.8,664.6,0.30093289]
[1748958729310,0.3003905,665.8,664.61,2.15002317]
[1748958729510,0.3003905,665.8,664.62,1.349573]
[1748958729705,0.3003905,665.8,664.63,2.45090072]
[1748958729913,0.3003905,665.8,664.64,1.34956395]
[1748958730112,0.3003905,665.8,664.65,1.34955942]
[1748958730411,0.3003905,665.8,664.66,2.45098197]
[1748958730706,0.3003905,665.8,664.67,1.04851289]
[1748958730910,0.3003905,665.8,664.68,1.04851289]
[1748958731113,0.3003905,665.8,664.69,1.04851289]
[1748958731317,0.3003905,665.8,664.7,2.14994804]
[1748958731511,0.3003905,665.8,664.71,1.04851289]
[1748958731712,0.3003905,665.8,664.72,1.04851289]
[1748958732010,0.3003905,665.8,664.73,2.14991164]
[1748958732313,0.3003905,665.8,664.66,0.30090572]
[1748958732513,0.3003905,665.8,664.67,1.04842866]
[1748958732812,0.3003905,665.8,664.68,2.14982367]
[1748958733010,0.3003905,665.8,664.69,1.04842866]
[1748958733213,0.3003905,665.8,664.7,1.04842866]
[1748958733412,0.3003905,665.8,664.71,1.04842866]
[1748958733711,0.3003905,665.8,664.72,1.04842866]
[1748958733910,0.3003905,665.8,664.73,1.04842866]
[1748958734113,0.3003905,665.8,664.66,0.30090572]
[1748958734415,0.3003905,665.8,664.67,1.04802828]
[1748958734611,0.3003905,665.8,664.68,1.04802828]
[1748958734912,0.3003905,665.8,664.69,1.04802828]
[1748958735113,0.3003905,665.8,664.7,1.04802828]
[1748958735310,0.3003905,665.8,664.71,1.04802828]
[1748958735611,0.3003905,665.8,664.72,1.04802828]
[1748958735811,0.3003905,665.8,664.73,1.10140014]
[1748958736013,0.3003905,665.8,664.74,1.10140014]
[1748958736206,0.3003905,665.8,664.66,0.30090572]
[1748958736407,0.3003905,665.8,664.67,1.04779602]
[1748958736612,0.3003905,665.8,664.68,1.04779602]
[1748958736809,0.3003905,665.8,664.69,1.04779602]
[1748958737113,0.3003905,665.8,664.77,0.47680627]
[1748958737313,0.3003905,665.8,664.66,0.30090572]
[1748958737907,0.3003905,665.8,664.67,1.10161389]
[1748958738109,0.3003905,665.8,664.72,0.47680627]
[1748958738308,0.3003905,665.8,664.71,0.47680627]
[1748958739112,0.3003905,665.8,664.72,0.47680627]
[1748958739316,0.3003905,665.8,664.66,0.30090572]
[1748958740115,0.3003905,665.8,664.67,1.10231742]
[1748958740311,0.3003905,665.8,664.66,0.30090572]
[1748958742112,0.3003905,665.8,664.67,1.10267618]
[1748958742316,0.3003905,665.8,664.66,0.30090572]
[1748958742519,0.3003905,665.8,664.67,1.10266986]
[1748958742716,0.3003905,665.8,664.66,0.30090572]
[1748958743121,0.3003905,665.8,664.67,1.10267715]
[1748958743323,0.3003905,665.8,664.66,0.30090572]
[1748958743621,0.3003905,665.8,664.68,0.47680627]
[1748958744118,0.3003905,665.8,664.69,2.15075563]
[1748958744323,0.3003905,665.8,664.73,0.47680627]
[1748958744625,0.3003905,665.8,664.74,1.10206422]
[1748958744923,0.3003905,665.8,664.73,0.47680627]
[1748958745117,0.3003905,665.8,664.74,0.47680627]
[1748958745522,0.3003905,665.8,664.75,0.47680627]
[1748958745721,0.3003905,665.8,664.74,0.47680627]
[1748958746224,0.3003905,665.8,664.75,0.47680627]
[1748958746920,0.3003905,665.8,664.76,0.47680627]
[1748958747317,0.3003905,665.8,664.77,0.47680627]
[1748958747520,0.3003905,665.8,664.78,0.47680627]
[1748958747723,0.3003905,665.8,664.88,0.47680627]
[1748958747922,0.3003905,665.8,664.66,0.30090572]
[1748958747923,0.3003905,665.8,664.94,0.47680627]
[1748958748124,0.3003905,665.8,664.66,0.30090572]
[1748958748125,0.3003905,665.8,664.93,0.47680627]
[1748958748318,0.3003905,665.8,664.66,0.30090572]
[1748958748319,0.3003905,665.8,664.95,0.47680627]
[1748958748527,0.3003905,665.8,664.94,0.47680627]
[1748958749026,0.3003905,665.8,664.95,0.47680627]
[1748958749527,0.3003905,665.8,664.96,0.47680627]
[1748958749925,0.3003905,665.8,664.95,0.47680627]
[1748958750428,0.3003905,665.8,664.99,0.47680627]
[1748958750624,0.3003905,665.8,664.98,0.47680627]
[1748958751430,3.75116012,665.9,664.99,0.47680627]
[1748958751823,3.75116012,665.89,664.99,0.47680627]
[1748958752228,3.75116012,665.9,664.99,0.47680627]
[1748958752426,3.75116012,665.9,665.0,0.47680627]
[1748958752828,3.75116012,665.9,665.04,0.47680627]
[1748958753130,3.75116012,665.86,665.04,0.47680627]
[1748958753326,3.75116012,665.86,664.7,0.47662494]
[1748958753327,3.75116012,665.86,665.05,0.47680627]
[1748958753824,3.75116012,665.86,665.06,0.47680627]
[1748958754130,3.75116012,665.87,665.06,0.47680627]
[1748958754429,3.75116012,665.87,665.08,0.47680627]
[1748958754729,3.75116012,665.87,664.66,0.30090572]
[1748958754730,3.75116012,665.87,665.03,0.47680627]
[1748958754934,3.75116012,665.92,665.03,0.47680627]
[1748958755431,5.25162417,666.15,665.02,0.47680627]
[1748958755432,3.75116012,665.91,665.02,0.47680627]
[1748958755632,3.75116012,665.91,665.01,0.47680627]
[1748958755930,3.75116012,665.91,664.67,0.47662494]
[1748958755931,3.75116012,665.88,665.03,0.47680627]
[1748958756132,3.75116012,665.88,664.96,0.47680627]
[1748958756527,3.75116012,665.88,664.66,0.30090572]
[1748958756528,3.75116012,665.88,664.97,0.47680627]
[1748958757029,3.75116012,665.86,664.94,0.47680627]
[1748958757226,3.75116012,665.85,664.95,0.47680627]
[1748958758325,3.75116012,665.85,664.94,0.47680627]
[1748958758725,3.75116012,665.85,664.95,0.47680627]
[1748958759432,3.75116012,665.85,664.66,0.30090572]
[1748958759433,3.75116012,665.85,664.8,0.47680627]
[1748958759632,3.75116012,666.0,664.8,0.47680627]
[1748958760228,3.75116012,665.99,664.8,0.47680627]
[1748958760732,3.75116012,665.99,664.81,0.47680627]
[1748958761128,3.75116012,665.98,664.81,0.47680627]
[1748958762332,5.25162417,666.27,664.66,0.30090572]
[1748958762527,0.30018761,666.25,664.67,1.04904455]
[1748958762830,0.30018761,666.25,664.68,1.04904455]
[1748958763026,0.30018761,666.25,664.69,1.04904455]
[1748958763226,0.30018761,666.25,664.7,1.04904455]
[1748958763432,0.30018761,666.25,664.71,1.04900362]
[1748958763627,0.30018761,666.25,664.66,0.30090572]
[1748958763829,0.30018761,666.25,664.67,1.04900014]
[1748958764027,0.30018761,666.25,664.68,1.04900014]
[1748958764327,0.30018761,666.25,664.69,1.04900014]
[1748958764532,0.30018761,666.25,664.7,1.04900014]
[1748958764731,0.30018761,666.25,664.71,1.04900014]
[1748958764927,0.30018761,666.25,664.66,0.30090572]
[1748958765128,0.30018761,666.25,664.67,1.04904814]
[1748958765333,0.30018761,666.25,664.68,2.15123493]
[1748958765530,0.30018761,666.25,664.69,1.04904814]
[1748958765727,0.30018761,666.25,664.66,0.30090572]
[1748958765932,0.30018761,666.25,664.67,1.10219174]
[1748958766127,0.30018761,666.25,664.66,0.30090572]
[1748958766333,0.30018761,666.25,664.67,1.10219174]
[1748958766528,0.30018761,666.25,664.68,1.04912123]
[1748958766733,0.30018761,666.25,664.69,1.04912123]
[1748958766933,0.30018761,666.25,664.7,1.04912123]
[1748958767133,0.30018761,666.25,664.71,1.04912123]
[1748958767334,0.30018761,666.25,664.72,1.04936446]
[1748958767536,0.30018761,666.25,664.66,0.30090572]
[1748958767736,0.30018761,666.25,664.67,1.04931793]
[1748958767932,0.30018761,666.25,664.68,2.15144757]
[1748958768139,0.30018761,666.25,664.69,2.15144757]
[1748958768440,0.30018761,666.25,664.7,1.04931793]
[1748958768739,0.30018761,666.25,664.71,2.15120457]
[1748958768931,0.30018761,666.25,664.72,2.15120192]
[1748958769132,0.30018761,666.25,664.73,2.45207585]
[1748958769335,0.30018761,666.25,664.74,1.04931793]
[1748958769534,0.30018761,666.25,664.75,1.04931793]
[1748958769733,0.30018761,666.25,664.76,1.04931793]
[1748958769933,0.30018761,666.25,664.77,1.10183399]
[1748958770237,0.30018761,666.25,664.73,0.30087403]
[1748958770434,0.30018761,666.25,664.74,1.04946357]
[1748958770633,0.30018761,666.25,664.75,2.15114697]
[1748958770940,0.30018761,666.25,664.76,2.15114609]
[1748958771239,0.30018761,666.25,664.77,1.04946553]
[1748958771440,0.30018761,666.25,664.73,0.30087403]
[1748958771740,0.30018761,666.25,664.74,1.04962165]
[1748958771940,0.30018761,666.25,664.75,2.15129517]
[1748958772141,0.30018761,666.25,664.85,0.47830985]
[1748958772342,3.74604532,666.02,664.85,0.47830985]
[1748958772743,3.74604532,666.01,664.85,0.47830985]
[1748958773140,3.74604532,666.02,664.85,0.47830985]
[1748958773541,3.74604532,666.01,664.85,0.47830985]
[1748958774537,3.74604532,666.0,664.85,0.47830985]
[1748958775042,3.74604532,666.0,664.84,0.47830985]
[1748958775243,3.74604532,666.0,664.85,0.47830985]
[1748958775443,3.74604532,665.99,664.84,0.47830985]
[1748958775643,3.74604532,665.99,664.85,0.47830985]
[1748958776245,3.74604532,665.99,664.86,0.47830985]
[1748958776544,3.74604532,666.0,665.0,0.47830985]
[1748958776945,3.74604532,665.84,665.0,0.47830985]
[1748958777745,3.74604532,665.83,665.0,0.47830985]
[1748958778244,3.74604532,665.83,665.04,0.47830985]
[1748958778439,3.74604532,665.83,665.13,0.47830985]
[1748958778642,0.30018761,666.25,665.11,0.47830985]
[1748958778643,3.74604532,665.71,665.11,0.47830985]
[1748958779144,3.74604532,665.72,665.11,0.47830985]
[1748958779742,3.74604532,665.71,665.11,0.47830985]
[1748958780045,3.74604532,665.85,665.01,0.47830985]
[1748958781143,3.74604532,665.85,665.02,0.47830985]
[1748958781346,3.74604532,665.85,665.01,0.47830985]
[1748958781845,3.74604532,665.84,665.01,0.47830985]
[1748958782245,3.74604532,665.84,665.03,0.47830985]
[1748958782439,3.74604532,665.85,665.03,0.47830985]
[1748958783345,0.30018761,666.25,665.02,0.47830985]
[1748958783346,3.74604532,665.83,665.02,0.47830985]
[1748958783645,3.74604532,665.83,665.03,0.47830985]
[1748958784245,3.74604532,665.84,665.03,0.47830985]
[1748958784741,3.74604532,665.84,665.02,0.47830985]
[1748958784941,3.74604532,665.84,665.01,0.47830985]
[1748958785147,3.74604532,665.86,665.0,0.47830985]
[1748958786447,3.74604532,665.86,665.01,0.47830985]
[1748958786947,3.74604532,665.86,664.92,0.47830985]
[1748958787146,3.74604532,665.95,664.92,0.47830985]
[1748958787447,3.74604532,665.97,664.9,0.47830985]
[1748958787746,3.74604532,665.97,664.91,0.47830985]
[1748958788148,3.74604532,665.97,664.79,0.47830985]
[1748958788345,3.74604532,666.14,664.8,1.05208369]
[1748958788546,3.74604532,666.14,664.81,1.05208369]
[1748958788742,3.74604532,666.14,664.82,1.05208369]
[1748958788947,3.74604532,666.14,664.83,1.05208369]
[1748958789246,3.74604532,666.16,664.84,1.05208369]
[1748958789446,3.74604532,666.16,664.83,0.47830985]
[1748958789447,3.74604532,666.16,664.85,1.05208369]
[1748958789643,3.74604532,666.16,664.86,1.05208369]
[1748958789845,3.74604532,666.16,664.87,1.05208369]
[1748958790044,3.74604532,666.16,664.83,0.47830985]
[1748958790243,3.74604532,666.15,664.84,1.0516273]
[1748958790446,3.74604532,666.15,664.85,1.0516273]
[1748958790642,3.74604532,666.15,664.86,1.0516273]
[1748958790947,3.74604532,666.15,664.87,1.0516273]
[1748958791145,3.74604532,666.15,664.88,1.0516273]
[1748958791343,3.74604532,666.14,664.89,1.0516273]
[1748958791543,3.74604532,666.14,664.8,0.47830985]
[1748958791742,3.74604532,666.12,664.81,1.05185986]
[1748958791942,3.74604532,666.12,664.82,1.05185986]
[1748958792148,3.74604532,666.06,664.83,1.05185986]
[1748958792350,3.74604532,666.06,664.93,0.47830985]
[1748958792546,3.74604532,665.85,664.94,0.47830985]
[1748958792750,3.74604532,665.85,664.99,0.47830985]
[1748958792947,3.74604532,665.85,665.03,0.47830985]
[1748958793147,3.74604532,665.74,665.02,0.47830985]
[1748958793450,3.74604532,665.74,665.03,0.47830985]
[1748958796048,3.74604532,665.74,665.04,0.47830985]
[1748958796351,3.74604532,665.72,665.02,0.47830985]
[1748958796552,3.74604532,665.72,665.01,0.47830985]
[1748958796951,3.74604532,665.72,664.98,0.47830985]
[1748958797146,3.74604532,665.75,664.99,0.47830985]
[1748958797653,3.74604532,665.76,664.99,0.47830985]
[1748958798051,3.74604532,665.76,664.74,0.30086951]
[1748958798052,3.74604532,665.76,665.0,0.47830985]
[1748958799049,3.74604532,665.73,665.03,0.47830985]
[1748958799249,3.74604532,665.73,664.88,0.47830985]
[1748958799455,3.74604532,665.73,664.87,0.47830985]
[1748958799657,3.74604532,665.88,664.87,0.47830985]
[1748958799953,3.74604532,665.89,664.87,0.47830985]
[1748958800345,3.74604532,665.89,664.86,0.47830985]
[1748958800552,3.74604532,665.9,664.84,0.47830985]
[1748958800748,3.74604532,665.9,664.83,0.47830985]
[1748958800949,3.74604532,665.88,664.84,0.47830985]
[1748958802554,3.74604532,665.89,664.74,0.30086951]
[1748958802755,3.74604532,665.89,664.75,1.05273771]
[1748958803058,3.74604532,665.98,664.76,1.05273771]
[1748958803256,3.74604532,665.98,664.77,1.05273771]
[1748958803456,3.74604532,665.98,664.74,0.30086951]
[1748958803757,3.74604532,665.99,664.75,1.0527711]
[1748958804055,3.74604532,665.99,664.76,1.0527711]
[1748958804255,3.74604532,666.08,664.77,1.0527711]
[1748958804455,3.74604532,666.08,664.78,1.0527711]
[1748958804456,0.30026874,666.07,664.78,1.0527711]
[1748958804657,0.30026874,666.07,664.79,1.0527711]
[1748958804856,0.30026874,666.07,664.74,0.30086951]
[1748958805051,0.30026874,666.07,664.75,1.05270807]
[1748958805257,0.30026874,666.07,664.76,1.05270807]
[1748958805451,0.30026874,666.07,664.77,1.05270807]
[1748958805655,0.30026874,666.07,664.78,1.05270807]
[1748958805956,0.30026874,666.07,664.79,1.05254898]
[1748958806151,0.30026874,666.07,664.74,0.30086951]
[1748958806352,0.30026874,666.07,664.75,1.05245657]
[1748958806552,0.30026874,666.07,664.76,1.05245657]
[1748958806754,0.30026874,666.07,664.77,1.05245657]
[1748958806955,0.30026874,666.07,664.78,1.05245657]
[1748958807156,0.30026874,666.07,664.79,1.05245657]
[1748958807352,0.30026874,666.07,664.74,0.30086951]
[1748958807553,0.30026874,666.07,664.75,1.05228916]
[1748958807756,0.30026874,666.07,664.74,0.30086951]
[1748958807757,0.30026874,666.07,664.76,1.05228916]
[1748958807958,0.30026874,666.07,664.77,1.05228916]
[1748958808157,0.30026874,666.07,664.78,1.05228916]
[1748958808354,0.30026874,666.07,664.74,0.30086951]
[1748958808355,3.74604532,666.02,664.74,0.30086951]
[1748958808558,3.74604532,666.02,664.75,1.05201739]
[1748958808755,3.74604532,666.02,664.76,1.05201739]
[1748958809060,3.74604532,666.02,664.77,1.05201739]
[1748958809260,3.74604532,666.02,664.78,1.05201739]
[1748958809561,3.74604532,666.02,664.74,0.30086951]
[1748958809760,3.74604532,666.02,664.75,1.05198828]
[1748958809961,3.74604532,666.02,664.74,0.30086951]
[1748958810262,3.74604532,665.98,664.75,1.05198509]
[1748958810562,3.74604532,665.98,664.74,0.30086951]
[1748958810761,3.74604532,665.99,664.75,1.05199521]
[1748958811061,3.74604532,665.99,664.74,0.30086951]
[1748958811261,3.74604532,665.99,664.75,1.05198202]
[1748958811561,3.74604532,665.99,664.74,0.30086951]
[1748958811760,3.74604532,665.99,664.75,1.05193226]
[1748958811960,3.74604532,665.99,664.74,0.30086951]
[1748958812157,3.74604532,665.99,664.75,1.05192694]
[1748958812362,3.74604532,665.99,664.77,0.47830985]
[1748958812558,3.74604532,665.91,664.77,0.47830985]
[1748958813361,3.74604532,665.91,664.76,0.47830985]
[1748958813563,3.74604532,665.91,664.75,0.47830985]
[1748958813864,3.74604532,665.91,664.74,0.30086951]
[1748958814057,3.74604532,665.9,664.74,0.30086951]
[1748958814256,3.74604532,665.9,664.88,0.47830985]
[1748958814461,3.74604532,665.75,664.88,0.47830985]
[1748958814962,3.74604532,665.73,664.9,0.47830985]
[1748958815463,3.74604532,665.73,664.91,0.47830985]
[1748958815657,3.74604532,665.73,664.9,0.47830985]
[1748958815858,3.74604532,665.74,664.89,0.47830985]
[1748958816257,3.74604532,665.73,664.89,0.47830985]
[1748958816562,3.74604532,665.73,664.88,0.47830985]
[1748958816764,3.74604532,665.72,664.88,0.47830985]
[1748958817157,5.24446345,665.97,664.9,0.47830985]
[1748958817158,3.74604532,665.68,664.9,0.47830985]
[1748958817561,3.74604532,665.69,664.89,0.47830985]
[1748958818159,3.74604532,665.71,664.91,0.47830985]
[1748958818564,3.74604532,665.69,664.89,0.47830985]
[1748958819065,3.74604532,665.68,664.88,0.47830985]
[1748958820164,3.74604532,665.72,664.88,0.47830985]
[1748958820465,0.30026874,666.07,664.92,0.47830985]
[1748958820466,3.74604532,665.68,664.92,0.47830985]
[1748958820865,3.74604532,665.69,664.92,0.47830985]
[1748958821767,3.74604532,665.69,664.93,0.47830985]
[1748958821967,3.74604532,665.69,664.91,0.47830985]
[1748958822370,3.74604532,665.7,664.91,0.47830985]
[1748958822668,3.74604532,665.7,664.92,0.47830985]
[1748958822964,3.74604532,665.7,664.74,0.30086951]
[1748958822965,3.74604532,665.69,664.77,0.47830985]
[1748958823163,3.74604532,665.62,664.77,0.47830985]
[1748958823463,3.74604532,665.62,664.75,0.47830985]
[1748958823769,3.74604532,665.66,664.74,0.30086951]
[1748958824070,0.30026874,666.07,664.74,0.30086951]
[1748958824071,3.74604532,665.71,664.74,0.30086951]
[1748958824368,3.74604532,665.71,664.55,1.09976217]
[1748958824967,3.74604532,665.7,664.55,1.09976217]
[1748958826369,3.74604532,665.71,664.55,1.09976217]
[1748958826571,3.74604532,665.75,664.55,1.09976217]
[1748958826969,4.04645838,665.75,664.55,1.09976217]
[1748958827170,3.74604532,665.73,664.55,1.09976217]
[1748958827571,3.74604532,665.7,664.55,1.09976217]
[1748958827968,3.74604532,665.59,664.4,0.47830985]
[1748958828273,3.74604532,665.59,664.35,0.47830985]
[1748958828474,3.74604532,665.62,664.36,1.5296886]
[1748958828671,3.74604532,665.62,664.33,0.47830985]